bitfinex/quotes_ETHUSD_20260129
["timestamp","ask_amount","ask_price","bid_price","bid_amount"]
[1769699131694,1.45434675,2853.8,2851.7,0.01054351]
[1769699131890,1.45434675,2853.8,2851.9,0.01054351]
[1769699132130,1.45534675,2853.8,2851.7,0.01054351]
[1769699132315,1.45534675,2853.8,2851.9,0.01054351]
[1769699132527,0.40245179,2854.8,2852.5,0.01054351]
[1769699132690,0.87550341,2855.5,2852.9,0.01054351]
[1769699132891,1.61050341,2855.5,2853.1,0.01054351]
[1769699133127,1.61050341,2855.5,2852.9,0.01054351]
[1769699133324,1.61050341,2855.5,2853.2,0.87620916]
[1769699133517,1.61050341,2855.5,2853.3,0.01054351]
[1769699133518,0.87550341,2855.5,2853.3,0.01054351]
[1769699133716,1.16079648,2855.4,2853.2,0.87620916]
[1769699134092,0.735,2855.3,2853.2,0.87620916]
[1769699134551,11.47800488,2855.3,2853.0,0.87626291]
[1769699134835,11.46746137,2855.2,2852.3,0.01054351]
[1769699135001,11.46746137,2855.2,2852.7,0.87634395]
[1769699135202,10.73246137,2854.8,2852.4,0.87643545]
[1769699135514,11.46746137,2854.7,2852.4,0.87643545]
[1769699136026,11.46746137,2854.7,2851.8,0.01054351]
[1769699136027,10.73246137,2854.3,2852.0,0.87657546]
[1769699136225,10.73246137,2854.3,2852.2,0.87651585]
[1769699136523,0.735,2854.2,2852.2,0.87649493]
[1769699136691,0.11294351,2854.4,2851.9,3.5064127]
[1769699136692,11.46746137,2854.1,2851.9,3.5064127]
[1769699136893,11.46746137,2854.1,2852.1,0.87653991]
[1769699137139,11.46746137,2854.1,2850.6,3.507925]
[1769699137140,10.83486137,2853.8,2850.6,3.507925]
[1769699137423,0.87605564,2853.7,2851.2,3.50722557]
[1769699137730,0.735,2853.6,2851.2,3.50722557]
[1769699137914,11.46746137,2853.6,2851.2,0.87682379]
[1769699138114,10.73246137,2853.4,2851.2,0.87682379]
[1769699138317,10.73246137,2853.4,2850.6,3.50795009]
[1769699138533,10.73246137,2853.0,2850.8,0.87692368]
[1769699138740,10.73246137,2853.0,2850.7,0.8769632]
[1769699138902,10.73246137,2852.8,2849.3,0.01054351]
[1769699139103,10.73246137,2852.2,2849.1,3.50981398]
[1769699139336,10.73246137,2852.2,2849.0,0.002]
[1769699139337,10.73246137,2851.8,2849.0,0.002]
[1769699139505,0.88715208,2851.9,2849.0,0.002]
[1769699139506,10.73246137,2851.2,2849.0,0.002]
[1769699139710,10.73246137,2851.0,2849.0,0.002]
[1769699140036,12.61526186,2850.9,2849.0,0.002]
[1769699140205,11.46746137,2850.9,2849.0,0.002]
[1769699140406,0.735,2850.8,2849.0,0.002]
[1769699140608,11.46746137,2850.8,2849.0,0.002]
[1769699140830,10.73246137,2850.6,2849.0,0.002]
[1769699141016,1.07324614,2850.5,2849.0,0.002]
[1769699141341,0.87706988,2850.4,2849.0,0.002]
[1769699141746,0.1024,2850.2,2847.4,0.002]
[1769699141910,0.1024,2850.2,2847.8,0.87785682]
[1769699141911,10.73246137,2849.8,2847.8,0.87785682]
[1769699142109,10.73246137,2849.8,2847.4,0.002]
[1769699142110,0.735,2849.7,2848.0,0.87778748]
[1769699142328,1.14674614,2849.6,2848.2,0.87772671]
[1769699142528,11.46746137,2849.8,2848.2,0.87772671]
[1769699142739,11.46746137,2849.8,2848.2,0.8777384]
[1769699143117,11.46746137,2849.8,2848.2,0.87773]
[1769699143427,0.87728532,2849.7,2847.4,0.002]
[1769699143746,11.60974669,2849.7,2848.2,0.002]
[1769699144036,1.5853888,2849.6,2848.2,0.002]
[1769699145111,12.3552902,2849.7,2848.2,0.002]
[1769699145306,0.87743928,2849.2,2848.0,0.002]
[1769699146853,0.87743928,2849.2,2847.4,0.002]
[1769699146854,10.73246137,2849.0,2847.4,0.002]
[1769699147027,0.01054351,2848.9,2847.4,0.002]
[1769699147349,0.87759328,2848.7,2847.4,0.002]
[1769699147552,0.735,2848.6,2847.4,0.002]
[1769699148220,10.73246137,2848.5,2847.1,0.002]
[1769699148422,10.73246137,2848.5,2846.8,0.002]
[1769699148423,0.01054351,2848.1,2846.8,0.002]
[1769699148727,0.735,2848.0,2846.8,0.002]
[1769699149355,0.88813679,2848.7,2846.8,0.002]
[1769699149677,0.735,2848.6,2846.8,0.002]
[1769699149856,10.74300488,2848.5,2846.8,0.002]
[1769699150020,0.01054351,2848.3,2846.8,0.002]
[1769699150220,11.81835972,2848.3,2846.8,0.002]
[1769699150457,0.01054351,2848.1,2846.8,0.002]
[1769699150629,11.80781621,2848.3,2846.8,0.002]
[1769699151047,0.735,2848.2,2846.8,0.002]
[1769699151446,0.87777816,2848.1,2846.8,0.002]
[1769699151769,0.87759328,2848.7,2846.8,0.002]
[1769699151926,1.61259328,2848.7,2846.8,0.002]
[1769699152120,2.12488853,2848.7,2846.8,0.002]
[1769699152755,1.38988853,2848.7,2846.8,0.002]
[1769699153263,0.735,2848.6,2846.8,0.002]
[1769699153426,0.8776549,2848.5,2846.8,0.002]
[1769699154855,0.87763822,2848.6,2846.8,0.002]
[1769699155059,3.50951077,2849.6,2847.1,0.01054351]
[1769699155265,0.87724597,2849.9,2847.7,0.01054351]
[1769699155761,3.50889504,2850.0,2847.8,0.87787063]
[1769699155935,0.01054351,2849.8,2847.8,0.87787063]
[1769699156135,10.92302335,2849.9,2847.8,0.87787063]
[1769699156325,0.736,2849.8,2847.8,0.87787063]
[1769699156532,1.16590234,2849.7,2847.8,0.87787063]
[1769699157267,0.736,2849.8,2847.8,0.87787063]
[1769699157454,3.50889504,2850.0,2847.8,0.87787063]
[1769699157655,0.87706988,2850.4,2847.8,0.87787063]
[1769699157872,0.8768853,2851.0,2848.6,0.01054351]
[1769699158158,0.8768853,2851.0,2848.8,0.01054351]
[1769699158365,0.43844265,2850.9,2848.6,0.01054351]
[1769699158868,0.43844265,2850.9,2848.3,0.01054351]
[1769699159169,0.43844265,2850.9,2848.4,0.01054351]
[1769699159378,0.43844265,2850.9,2848.2,0.01054351]
[1769699159535,0.43844265,2850.9,2848.4,0.01054351]
[1769699159736,0.87694682,2850.8,2848.6,0.01054351]
[1769699159936,0.736,2851.2,2848.6,0.01054351]
[1769699159937,0.736,2851.2,2849.0,0.01054351]
[1769699160131,10.92302335,2852.1,2849.6,0.01054351]
[1769699160132,0.87663931,2851.8,2849.6,0.01054351]
[1769699160358,0.01054351,2852.5,2849.8,0.01054351]
[1769699160571,0.87633202,2852.8,2850.6,0.01054351]
[1769699161283,11.80989888,2852.8,2849.4,10.26495131]
[1769699161434,12.45348845,2852.7,2849.8,0.01054351]
[1769699161638,0.01054351,2852.4,2849.5,0.01054351]
[1769699161874,0.87648564,2852.3,2849.6,0.87731611]
[1769699162076,0.735,2852.2,2849.7,0.01054351]
[1769699162641,11.66856686,2852.2,2849.6,0.87731611]
[1769699162858,12.1775286,2852.1,2849.6,0.87731611]
[1769699163062,12.1775286,2852.1,2849.6,0.88785962]
[1769699163233,12.1775286,2852.1,2849.6,0.87731611]
[1769699163435,0.01054351,2851.8,2849.6,0.87731611]
[1769699164179,0.87667005,2851.7,2849.3,3.50926445]
[1769699164362,0.43938938,2851.6,2849.3,3.50926445]
[1769699164560,1.25450525,2852.1,2849.6,0.01054351]
[1769699164792,0.735,2852.4,2850.0,0.01054351]
[1769699164962,0.735,2852.4,2850.2,0.01054351]
[1769699165275,1.6114623,2852.4,2849.6,0.01054351]
[1769699165444,1.6114623,2852.4,2849.4,0.735]
[1769699165445,10.92302335,2852.2,2849.4,0.735]
[1769699165644,10.92302335,2852.2,2849.4,0.74554351]
[1769699165951,1.6114623,2852.4,2849.5,0.8773469]
[1769699165952,0.87657784,2852.0,2849.5,0.8773469]
[1769699166257,0.87657784,2852.0,2849.5,0.88789041]
[1769699166258,1.61157784,2852.0,2849.5,0.88789041]
[1769699166572,12.89187314,2852.1,2849.8,0.01054351]
[1769699166777,12.89187314,2852.1,2850.0,0.01054351]
[1769699167076,3.50532809,2852.9,2850.3,0.01054351]
[1769699167291,3.50532809,2852.9,2849.5,1.62289041]
[1769699167292,10.93356686,2852.4,2849.5,0.8773469]
[1769699167465,0.01054351,2852.0,2849.5,0.8773469]
[1769699167665,12.0279779,2852.0,2849.5,0.8773469]
[1769699168077,0.87660857,2851.9,2849.6,0.01054351]
[1769699168375,0.87660857,2851.9,2849.7,0.01054351]
[1769699168608,0.87660857,2851.9,2849.4,3.51993112]
[1769699168982,0.87660857,2851.9,2849.4,4.24438761]
[1769699169187,0.62229974,2851.8,2849.4,4.24438761]
[1769699169387,0.62229974,2851.8,2849.4,4.25493112]
[1769699169774,0.001,2851.7,2849.4,4.25493112]
[1769699169977,0.001,2851.7,2849.6,0.01054351]
[1769699170308,0.001,2851.7,2849.9,0.87722376]
[1769699170686,0.001,2851.7,2849.9,0.88776727]
[1769699171124,0.001,2851.7,2849.9,0.87722376]
[1769699171618,10.92402335,2851.7,2849.8,0.87724618]
[1769699171782,0.735,2851.6,2849.8,0.87724618]
[1769699171977,10.92402335,2851.7,2849.8,0.87724618]
[1769699172202,2.19249805,2851.6,2849.2,4.24468915]
[1769699172529,2.19249805,2851.6,2849.4,0.01054351]
[1769699173111,2.19249805,2851.6,2849.6,0.01054351]
[1769699173480,0.87767704,2851.7,2849.7,0.01054351]
[1769699173832,0.87767704,2851.7,2849.5,0.735]
[1769699173978,0.87767704,2851.7,2849.6,0.01054351]
[1769699174175,0.87767704,2851.7,2849.7,0.87728532]
[1769699174703,11.80070039,2851.7,2849.7,0.87728532]
[1769699174907,10.92302335,2851.5,2849.5,0.877336]
[1769699175072,10.92302335,2851.0,2849.0,0.87748063]
[1769699175278,10.92302335,2850.7,2848.2,3.51095026]
[1769699175521,10.92302335,2850.5,2848.7,0.87758269]
[1769699175684,3.688,2850.2,2848.0,3.51113482]
[1769699175878,3.688,2850.2,2847.4,3.5224952]
[1769699175879,10.92302335,2849.8,2847.4,3.51194136]
[1769699176079,10.92302335,2849.8,2847.0,0.002]
[1769699176080,11.81097534,2849.3,2847.0,0.002]
[1769699176314,10.93356686,2848.9,2847.0,0.002]
[1769699176525,11.66856686,2848.8,2847.0,0.002]
[1769699176812,10.93356686,2848.8,2847.0,0.002]
[1769699176987,11.65802335,2848.8,2847.0,0.002]
[1769699177615,10.92302335,2848.4,2847.0,0.002]
[1769699177919,12.02692355,2848.3,2846.6,0.003]
[1769699178226,0.87774734,2848.2,2846.6,0.003]
[1769699178382,10.92302335,2847.9,2845.7,0.87851846]
[1769699178576,0.01054351,2848.0,2845.6,0.002]
[1769699178577,10.92302335,2847.5,2845.6,0.002]
[1769699178781,10.93356686,2847.4,2845.6,0.002]
[1769699179085,1.09335669,2847.3,2845.6,0.88054573]
[1769699179411,12.01638004,2847.3,2845.6,0.002]
[1769699179576,11.66856686,2847.2,2845.6,0.002]
[1769699179781,10.93356686,2847.0,2845.6,0.002]
[1769699180010,0.01054351,2846.8,2845.6,0.002]
[1769699180211,0.87820985,2846.7,2845.6,0.002]
[1769699180411,1.61320985,2846.7,2845.6,0.002]
[1769699180615,12.54677671,2846.7,2844.0,0.8790436]
[1769699180788,10.93356686,2846.5,2844.0,0.8790436]
[1769699181179,10.93356686,2846.3,2844.0,0.8790436]
[1769699181378,10.92302335,2846.0,2844.0,0.8790436]
[1769699181581,10.92302335,2846.0,2843.9,0.8790587]
[1769699181778,0.01054388,2845.9,2843.9,0.8790587]
[1769699182222,0.87848759,2845.8,2843.5,0.003]
[1769699182394,10.92302335,2845.6,2843.5,0.003]
[1769699182595,10.92302335,2845.4,2843.5,0.003]
[1769699182785,0.736,2845.3,2843.5,0.003]
[1769699183216,0.736,2845.2,2843.5,0.003]
[1769699183394,11.65902335,2845.2,2843.5,0.003]
[1769699183594,0.01054703,2843.9,2842.7,3.51775693]
[1769699183807,10.92302335,2844.4,2843.0,0.87933684]
[1769699183994,0.736,2844.3,2843.0,0.87935084]
[1769699184198,0.736,2844.3,2842.8,0.87941466]
[1769699184199,0.736,2844.2,2842.8,0.87941466]
[1769699184584,0.87889163,2844.5,2842.8,0.87941466]
[1769699184809,0.889363,2844.8,2842.9,0.38991789]
[1769699185118,0.8787614,2845.0,2842.9,0.38991789]
[1769699185796,0.87173473,2845.0,2842.9,0.38991789]
[1769699186276,0.01054703,2845.1,2843.0,0.87935279]
[1769699186478,2.04555681,2845.5,2843.1,0.36232551]
[1769699186710,2.04555681,2845.5,2843.1,0.35177569]
[1769699186711,0.01054982,2844.4,2843.1,0.35177569]
[1769699186899,0.01054982,2844.0,2843.1,0.35177569]
[1769699187091,0.01054982,2844.0,2842.6,3.51788012]
[1769699187092,0.01055019,2843.6,2842.6,3.51788012]
[1769699187292,0.01055019,2843.4,2841.9,3.51868945]
[1769699187494,0.01055019,2843.2,2842.3,0.87954895]
[1769699187814,0.01055019,2842.8,2842.1,0.87961147]
[1769699187986,0.01055019,2843.0,2842.1,0.87961147]
[1769699188189,0.01055019,2843.2,2841.3,3.51945523]
[1769699188389,0.0105539,2843.1,2841.3,3.51945523]
[1769699188626,0.0105539,2843.1,2841.0,0.00685785]
[1769699188627,0.0105539,2842.5,2841.0,0.00685785]
[1769699188788,0.0105539,2841.6,2841.0,0.88682721]
[1769699189116,0.0105539,2842.5,2841.0,0.88682721]
[1769699189117,0.0105539,2842.4,2841.0,0.88682721]
[1769699189316,0.01055854,2842.2,2841.0,0.88682721]
[1769699189481,0.01055854,2842.0,2841.0,0.88682721]
[1769699189685,0.01055854,2843.0,2841.0,0.88682721]
[1769699189917,0.01055854,2842.5,2841.0,0.88682721]
[1769699190121,0.01055854,2843.2,2841.0,0.88682721]
[1769699190296,0.01055854,2842.7,2841.0,0.88682721]
[1769699190621,0.01055854,2842.3,2841.0,0.88682721]
[1769699190819,0.01055854,2842.2,2841.0,0.88682721]
[1769699191306,0.01055854,2842.5,2841.0,0.88682721]
[1769699191504,0.01055854,2842.1,2841.0,0.00685785]
[1769699191708,0.01055854,2841.9,2841.0,0.88682383]
[1769699191894,0.01055854,2842.1,2841.0,0.88682383]
[1769699192098,0.01055854,2842.1,2841.0,0.88682754]
[1769699192296,0.01055854,2841.9,2841.0,0.00685785]
[1769699192493,0.01055854,2841.7,2840.7,0.0020059]
[1769699192694,0.01055854,2841.9,2841.1,0.87994086]
[1769699193016,0.89019212,2842.1,2840.8,0.88001623]
[1769699193217,0.89019212,2842.1,2839.0,0.01]
[1769699193218,0.01055854,2841.4,2839.0,0.01]
[1769699193519,0.01055854,2841.2,2839.0,0.01]
[1769699193832,0.01055854,2841.1,2839.0,0.01]
[1769699194008,0.01055854,2840.5,2839.4,0.88046463]
[1769699194324,0.01055854,2841.1,2839.1,3.52219088]
[1769699194325,0.87995872,2841.1,2839.1,3.52219088]
[1769699194495,0.44102845,2841.0,2839.1,3.52219088]
[1769699195023,0.01055854,2841.7,2839.1,3.52219088]
[1769699195024,11.06690824,2842.5,2839.9,0.01056226]
[1769699195226,11.06691289,2843.3,2840.4,0.01056319]
[1769699195424,0.01056319,2842.7,2840.0,0.01056319]
[1769699195609,11.80391289,2843.1,2841.2,0.002]
[1769699195788,11.06691289,2843.1,2841.2,0.002]
[1769699196117,1.10669129,2843.0,2841.2,0.002]
[1769699196519,0.01056319,2843.5,2841.2,0.002]
[1769699197107,0.01056319,2842.6,2841.2,0.002]
[1769699197286,0.01056319,2842.4,2841.2,0.002]
[1769699197486,0.01056319,2842.6,2841.2,0.002]
[1769699197714,0.01056319,2842.5,2841.2,0.002]
[1769699198017,0.88976646,2843.5,2841.2,0.002]
[1769699198018,0.01056319,2843.8,2841.2,0.002]
[1769699198211,0.01056319,2843.6,2841.2,0.01256319]
[1769699198382,0.01056319,2843.6,2841.4,0.01056319]
[1769699198587,3.51492667,2845.1,2842.3,0.01056319]
[1769699198801,0.01056319,2845.2,2842.5,0.01056319]
[1769699198802,1.10669129,2844.8,2842.5,0.01056319]
[1769699199019,0.01056319,2844.5,2841.9,0.01056319]
[1769699199184,0.88933244,2844.9,2842.4,0.01056319]
[1769699199386,0.88934379,2844.9,2842.4,0.01056319]
[1769699199587,0.88934379,2844.9,2842.5,0.01056319]
[1769699199799,0.88934379,2844.9,2842.2,0.01056319]
[1769699200023,0.44042833,2844.8,2842.4,0.01056319]
[1769699200408,0.44042833,2844.8,2842.6,0.01056319]
[1769699200608,0.01056319,2844.9,2842.8,0.01056319]
[1769699200920,0.01056319,2845.3,2843.1,0.01056319]
[1769699201118,0.87860059,2845.5,2842.9,0.01056319]
[1769699201419,0.01056319,2844.9,2842.5,0.87950747]
[1769699201914,0.01056319,2844.9,2842.6,0.01056319]
[1769699202330,0.01056319,2844.9,2842.7,0.87944559]
[1769699202495,0.88934903,2844.9,2842.8,0.01056319]
[1769699202697,0.01056319,2844.6,2842.7,0.87944559]
[1769699202899,0.01056319,2844.4,2842.7,0.87944559]
[1769699203130,0.01056319,2843.8,2842.2,0.87956979]
[1769699203331,11.06691289,2844.4,2842.6,0.87946936]
[1769699203628,1.10669129,2844.3,2842.6,0.87946936]
[1769699204123,1.10669129,2844.3,2842.2,3.51790614]
[1769699204124,0.01056319,2844.0,2842.1,3.51846767]
[1769699204323,0.87907451,2843.9,2841.2,0.002]
[1769699204527,0.01056319,2843.2,2841.2,0.002]
[1769699204913,0.01056319,2842.8,2841.2,0.002]
[1769699205117,0.01056319,2842.6,2841.2,0.002]
[1769699205501,0.01056319,2842.8,2841.2,0.002]
[1769699205725,0.74756319,2842.9,2841.2,0.002]
[1769699205892,0.01056319,2842.7,2841.2,0.002]
[1769699206093,0.01056319,2842.3,2841.2,0.002]
[1769699206290,0.8796003,2842.2,2841.2,0.002]
[1769699206609,0.01056319,2842.1,2841.0,0.002]
[1769699206804,0.74756319,2842.1,2841.0,0.002]
[1769699207220,0.8796003,2842.2,2841.0,0.002]
[1769699207419,1.31940045,2842.2,2841.0,0.002]
[1769699208395,1.3194051,2842.2,2841.0,0.002]
[1769699209105,0.01056319,2842.1,2841.0,0.002]
[1769699209304,1.3194051,2842.2,2841.0,0.002]
[1769699209511,0.43980015,2842.2,2841.0,0.002]
[1769699209713,0.88059752,2842.3,2841.0,0.002]
[1769699210098,0.88057295,2842.3,2841.0,0.002]
[1769699210530,0.001,2842.3,2841.0,0.002]
[1769699211294,0.001,2842.3,2841.1,0.01056319]
[1769699211496,11.0563497,2843.6,2841.0,0.002]
[1769699211699,3.51586233,2844.3,2842.0,0.01056319]
[1769699211700,0.87895088,2844.3,2842.0,0.01056319]
[1769699211923,3.5152529,2844.8,2842.2,0.01056319]
[1769699211924,0.8787964,2844.8,2842.2,0.01056319]
[1769699212237,11.06691289,2845.2,2842.6,0.01056319]
[1769699212238,11.0563497,2845.2,2842.6,0.01056319]
[1769699212445,0.01056319,2844.9,2841.9,0.87969316]
[1769699212612,0.01056319,2844.5,2841.9,0.87969316]
[1769699213136,4.63102603,2845.1,2842.6,0.01056319]
[1769699213511,0.737,2845.0,2842.2,0.01056319]
[1769699213741,11.06691289,2844.9,2842.1,0.01056319]
[1769699214035,0.01056319,2844.7,2842.0,0.01056319]
[1769699214239,0.737,2844.6,2842.0,0.01056319]
[1769699214436,0.87888908,2844.5,2841.9,0.89025635]
[1769699214626,0.43944454,2844.4,2841.9,0.87969316]
[1769699214836,1.17644454,2844.4,2842.0,0.01056319]
[1769699215010,1.17644454,2844.4,2841.9,0.87969316]
[1769699215210,0.45000773,2844.4,2841.9,0.89025635]
[1769699215635,0.737,2844.3,2841.9,0.89025635]
[1769699215849,0.737,2844.3,2841.9,0.87969316]
[1769699216408,0.737,2844.2,2841.9,0.87969316]
[1769699216750,0.737,2844.2,2841.8,3.51877265]
[1769699216751,0.87895088,2844.3,2841.8,0.01056319]
[1769699216901,0.87895088,2844.3,2841.6,3.52933584]
[1769699216902,0.737,2844.2,2841.6,3.52933584]
[1769699217108,0.01056319,2844.0,2841.6,3.51877265]
[1769699217303,1.92454059,2844.0,2841.6,3.52933584]
[1769699217504,1.18754059,2844.0,2841.6,3.51877265]
[1769699217811,0.737,2843.9,2841.6,3.51877265]
[1769699218203,1.18754059,2844.0,2841.9,0.01056319]
[1769699218407,1.18754059,2844.0,2842.1,0.01056319]
[1769699218704,0.87895088,2844.3,2842.0,0.8796622]
[1769699219031,1.3183866,2844.4,2842.3,0.01056319]
[1769699219206,0.87894206,2844.4,2842.1,0.01056319]
[1769699219533,0.87894206,2844.4,2842.0,0.8796622]
[1769699219742,12.00678481,2844.4,2842.0,0.8796622]
[1769699220447,0.87873462,2845.0,2842.3,0.01056319]
[1769699220655,0.8787964,2844.8,2843.0,0.87935279]
[1769699220809,0.8787964,2844.8,2842.9,0.87936251]
[1769699220810,11.99607596,2844.8,2842.9,0.87936251]
[1769699221334,11.12784275,2844.6,2842.6,0.87945864]
[1769699221560,11.12784275,2844.6,2841.1,0.11296319]
[1769699221561,11.11727956,2844.4,2841.2,0.002]
[1769699221703,1.18648428,2844.5,2841.3,0.01056319]
[1769699221704,0.001,2843.8,2841.3,0.01056319]
[1769699221904,0.001,2843.8,2841.7,0.01056319]
[1769699222224,0.8787964,2844.8,2842.9,0.87937909]
[1769699222536,11.99607596,2844.8,2842.9,0.87937909]
[1769699222742,11.99607596,2844.8,2842.2,3.51838577]
[1769699223311,11.11727956,2844.5,2842.2,3.51838577]
[1769699223634,1.11278427,2844.4,2842.3,0.39929467]
[1769699223816,1.6157964,2844.8,2842.3,0.39929467]
[1769699224144,0.8787964,2844.8,2842.6,0.01056319]
[1769699224444,11.99607596,2844.8,2842.3,0.39929467]
[1769699224611,1.71739766,2844.7,2842.4,0.3529621]
[1769699224941,11.99613774,2844.6,2842.5,0.87950747]
[1769699225143,12.73313774,2844.6,2841.2,3.53212051]
[1769699225344,11.12784275,2844.3,2841.5,3.51922814]
[1769699225530,11.11727956,2844.0,2841.8,0.87971092]
[1769699225731,11.11727956,2843.8,2841.4,0.87982065]
[1769699225959,11.11727956,2843.7,2841.3,0.87985898]
[1769699226115,11.11727956,2843.5,2841.5,0.87980136]
[1769699226311,11.11727956,2843.4,2841.2,0.002]
[1769699226534,0.01056319,2843.6,2841.2,0.002]
[1769699226535,11.11727956,2843.2,2841.2,0.002]
[1769699226737,11.11727956,2843.0,2841.2,0.002]
[1769699226935,11.11727956,2843.0,2841.0,0.002]
[1769699226936,11.11727956,2842.7,2841.0,0.002]
[1769699227136,11.11727956,2842.4,2839.9,3.52118988]
[1769699227346,11.11727956,2842.1,2839.8,0.002]
[1769699227537,0.01056319,2842.3,2839.8,0.002]
[1769699227538,12.59780752,2842.0,2839.8,0.88234318]
[1769699227711,1.48052796,2842.0,2840.1,0.01056319]
[1769699227911,0.87938372,2842.9,2840.5,0.01056319]
[1769699228150,1.61638372,2842.9,2840.7,0.01056319]
[1769699228322,1.61638372,2842.9,2840.3,0.01056319]
[1769699228527,0.87938372,2842.9,2840.7,0.01056319]
[1769699228725,0.87938372,2842.9,2840.5,0.01056319]
[1769699228726,1.11172796,2843.3,2841.5,0.01056319]
[1769699228939,3.51523043,2844.8,2842.0,0.01056319]
[1769699229140,0.87876551,2844.9,2842.5,0.01056319]
[1769699229343,0.87858021,2845.5,2843.1,0.01056319]
[1769699229661,0.87827156,2846.5,2844.0,0.01056319]
[1769699229961,0.87827156,2846.5,2844.4,0.01056319]
[1769699230161,0.87827156,2846.5,2843.5,0.24413349]
[1769699230162,0.01056319,2845.8,2843.1,0.01056319]
[1769699230328,0.01056319,2845.6,2843.0,0.01056319]
[1769699230524,0.737,2845.5,2843.2,0.01056319]
[1769699230729,0.737,2845.5,2842.8,0.01056319]
[1769699230939,0.737,2845.5,2842.9,0.87938372]
[1769699230940,0.88917428,2845.4,2842.9,0.87938372]
[1769699231247,0.51406186,2845.3,2842.9,0.88994691]
[1769699231455,0.51406186,2845.3,2843.1,0.01056319]
[1769699231617,0.51406186,2845.3,2843.2,0.01056319]
[1769699231817,0.01056319,2845.4,2842.9,0.87938372]
[1769699232019,0.01056319,2845.2,2842.9,0.87938372]
[1769699232417,0.74756319,2845.2,2842.9,0.87938372]
[1769699232641,0.01056319,2845.2,2842.9,0.87938372]
[1769699232844,0.737,2845.1,2842.9,0.87938372]
[1769699233160,0.01056319,2844.3,2842.4,0.87951755]
[1769699233449,0.737,2844.4,2842.6,0.87944857]
[1769699233650,11.12784275,2844.6,2842.6,0.87944857]
[1769699233651,11.11727956,2844.6,2842.6,0.87944857]
[1769699233817,0.01056319,2844.5,2842.6,0.87944857]
[1769699234020,0.737,2844.8,2842.6,0.87944857]
[1769699234918,0.01056319,2844.3,2842.5,0.87949766]
[1769699235117,0.01056319,2844.3,2841.9,3.51871735]
[1769699235324,0.01056319,2843.9,2840.6,7.85853173]
[1769699235535,0.01056319,2843.9,2841.4,3.51934349]
[1769699235827,0.737,2843.8,2842.5,0.87950045]
[1769699236026,0.737,2843.7,2842.5,0.87950045]
[1769699236242,0.737,2843.7,2842.3,3.51826585]
[1769699236243,0.737,2843.7,2841.5,0.35193435]
[1769699236471,0.01056319,2843.6,2841.8,0.87971785]
[1769699236669,0.01056319,2843.4,2841.0,3.51984973]
[1769699236871,0.01056319,2843.4,2841.6,0.8797851]
[1769699237073,0.87926001,2843.3,2841.2,0.87990989]
[1769699237273,0.44068633,2843.2,2841.2,0.87990989]
[1769699237833,0.01056319,2844.7,2841.6,0.01056319]
[1769699238036,0.87890552,2844.5,2842.2,0.01056319]
[1769699238267,0.87890552,2844.5,2842.4,0.01056319]
[1769699238453,0.87890552,2844.5,2842.2,0.01056319]
[1769699238775,0.87890552,2844.5,2842.0,0.01056319]
[1769699239074,0.87895088,2844.3,2842.1,0.87963125]
[1769699239770,0.87895088,2844.3,2842.4,0.01056319]
[1769699240068,0.737,2844.8,2842.2,0.01056319]
[1769699240069,0.87976277,2845.0,2842.9,0.01056319]
[1769699240279,0.4394692,2844.9,2842.9,0.01056319]
[1769699240437,0.001,2845.0,2843.1,0.01056319]
[1769699240775,0.87920985,2846.8,2844.2,0.01056319]
[1769699240948,0.001,2846.8,2844.3,0.01056319]
[1769699241149,1.17618612,2846.7,2844.2,0.01056319]
[1769699241351,12.29346568,2846.7,2844.1,0.87901269]
[1769699241568,11.11727956,2846.5,2844.1,0.87901269]
[1769699242473,11.12784275,2846.3,2842.4,14.48651362]
[1769699242677,11.11727956,2845.7,2842.9,0.01056319]
[1769699242849,0.737,2845.6,2842.9,0.01056319]
[1769699243050,11.99585977,2845.5,2843.0,3.51733332]
[1769699243250,12.73285977,2845.5,2843.0,0.87935279]
[1769699244349,11.99585977,2845.5,2843.2,0.01056319]
[1769699244557,2.78103036,2845.5,2843.4,0.01056319]
[1769699244757,0.87839499,2846.1,2843.8,0.01056319]
[1769699244973,0.87839499,2846.1,2844.0,0.01056319]
[1769699245379,1.18648428,2846.2,2844.0,0.01056319]
[1769699245683,0.001,2846.8,2844.9,0.01056319]
[1769699245982,0.001,2846.8,2844.7,0.01056319]
[1769699245983,0.001,2846.8,2845.4,0.01056319]
[1769699246188,0.87774734,2848.2,2845.8,0.01056319]
[1769699246486,0.43886681,2848.1,2845.4,0.01056319]
[1769699246698,0.01056319,2847.6,2843.9,0.87907451]
[1769699246847,0.01056319,2847.5,2845.1,0.01056319]
[1769699247184,0.87780898,2848.0,2845.4,0.87861109]
[1769699247875,0.87780898,2848.0,2845.4,0.88917428]
[1769699248672,0.87780898,2848.0,2845.6,0.01056319]
[1769699248981,0.87780898,2848.0,2845.4,0.88917428]
[1769699249390,0.44943,2848.1,2845.5,0.2335703]
[1769699249559,0.01056319,2849.5,2846.9,0.01056319]
[1769699249774,0.87740848,2849.4,2847.3,0.01056319]
[1769699249951,0.87722376,2849.9,2847.3,0.01056319]
[1769699250287,0.87722376,2849.9,2846.7,0.74756319]
[1769699250288,0.01056319,2849.5,2846.7,0.01056319]
[1769699250462,0.01056319,2849.5,2846.0,8.20697507]
[1769699250463,0.01056319,2849.1,2846.2,0.01056319]
[1769699250654,10.4801309,2849.2,2846.5,0.01056319]
[1769699250986,0.01056319,2849.3,2846.0,0.01056319]
[1769699250987,0.87756248,2848.8,2846.0,0.01056319]
[1769699251187,12.09469338,2848.8,2846.2,0.01056319]
[1769699251404,12.09469338,2848.8,2846.4,0.01056319]
[1769699251601,1.56049433,2848.7,2846.2,0.01056319]
[1769699251909,1.56049433,2848.7,2846.4,0.01056319]
[1769699252056,1.56049433,2848.7,2846.2,0.01056319]
[1769699252562,1.56049433,2848.7,2846.4,0.01056319]
[1769699252980,0.87762409,2848.6,2846.5,0.87827156]
[1769699253182,0.59486148,2848.5,2846.5,0.87827156]
[1769699253666,0.74656319,2848.9,2846.5,0.87827156]
[1769699253667,0.87743231,2849.3,2847.1,0.01056319]
[1769699253862,0.87743231,2849.3,2846.7,0.01056319]
[1769699254063,0.87743231,2849.3,2846.5,0.88883475]
[1769699254064,0.01056319,2849.2,2846.5,0.88883475]
[1769699254407,0.87731611,2849.6,2847.3,0.01056319]
[1769699254559,3.50873106,2850.1,2847.6,0.01056319]
[1769699254560,1.14503603,2849.5,2847.6,0.01056319]
[1769699254760,0.87730577,2849.7,2847.4,0.01056319]
[1769699254960,11.45034996,2849.7,2847.0,0.87811731]